fUSD/lending_fUSD_20250804
["ID","MTS","AMOUNT","RATE_DAILY","PERIOD"]
[377194763,1754283045776,-295.672472,0.00047673,14]
[377194764,1754283046091,-241.196721,0.00047673,14]
[377194765,1754283046121,-879.395519,0.00047673,14]
[377194766,1754283046132,-879.395519,0.00047673,14]
[377194767,1754283046142,-224.0,0.00047682,90]
[377194768,1754283046153,-418.26816,0.00047687,14]
[377194769,1754283046163,-418.26816,0.00047687,14]
[377194770,1754283046173,-1553.465892,0.00047687,14]
[377194771,1754283046186,-1553.465892,0.00047687,14]
[377194772,1754283046196,-151.0,0.000477,14]
[377194773,1754283046206,-151.0,0.000477,14]
[377194774,1754283046215,-151.0,0.000477,14]
[377194775,1754283046226,-418.26816,0.000477,14]
[377194777,1754283046236,-418.26816,0.000477,14]
[377194778,1754283046245,-295.672472,0.000477,14]
[377194779,1754283046256,-295.672472,0.000477,14]
[377194780,1754283046266,-151.0,0.000477,14]
[377194781,1754283046276,-151.0,0.000477,14]
[377194782,1754283046285,-151.0,0.000477,14]
[377194783,1754283046295,-1553.465892,0.000477,14]
[377194784,1754283046304,-151.0,0.000477,14]
[377194785,1754283046314,-1553.465892,0.000477,14]
[377194786,1754283046323,-879.395519,0.000477,14]
[377194787,1754283046333,-879.395519,0.000477,14]
[377194788,1754283046342,-151.0,0.000477,14]
[377194789,1754283046352,-1000.0,0.000477,7]
[377194790,1754283046362,-151.0,0.000477,14]
[377194791,1754283046371,-759.368077,0.000477,14]
[377194792,1754283046381,-759.368077,0.000477,14]
[377194793,1754283046390,-151.0,0.000477,14]
[377194794,1754283046399,-500.0,0.000477,17]
[377194795,1754283046409,-987.84,0.000477,47]
[377194796,1754283046419,-151.0,0.000477,14]
[377194797,1754283046428,-1000.0,0.00047721,10]
[377194798,1754283046438,-153.29,0.00047725,14]
[377194799,1754283046447,-156.383977,0.00047726,14]
[377194800,1754283046457,-156.312294,0.00047726,14]
[377194801,1754283046466,-151.0,0.00047726,14]
[377194802,1754283046475,-151.0,0.00047726,14]
[377194803,1754283046484,-151.0,0.00047726,14]
[377194804,1754283046494,-177.685595,0.00047726,14]
[377194805,1754283046504,-177.685595,0.00047726,14]
[377194806,1754283046513,-151.0,0.00047726,14]
[377194808,1754283046523,-418.26816,0.00047726,14]
[377194809,1754283046532,-418.26816,0.00047726,14]
[377194810,1754283046542,-1553.465892,0.00047726,14]
[377194811,1754283046551,-1553.465892,0.00047726,14]
[377194812,1754283046561,-1000.0,0.00047734,14]
[377194813,1754283046571,-1622.98621614,0.00047738,2]
[377194814,1754283046580,-151.0,0.00047745,14]
[377194815,1754283046589,-151.0,0.00047745,14]
[377194816,1754283046599,-151.0,0.00047745,14]
[377194817,1754283046608,-151.0,0.00047745,14]
[377194818,1754283046618,-151.0,0.00047745,14]
[377194819,1754283046630,-759.368077,0.00047745,14]
[377194820,1754283046640,-759.368077,0.00047745,14]
[377194821,1754283046649,-151.0,0.00047745,14]
[377194822,1754283046659,-300.970445,0.00047745,14]
[377194823,1754283046669,-300.970445,0.00047745,14]
[377194824,1754283046679,-295.672472,0.00047753,14]
[377194825,1754283046688,-295.672472,0.00047753,14]
[377194826,1754283046698,-879.395519,0.00047753,14]
[377194827,1754283046707,-879.395519,0.00047753,14]
[377194828,1754283046716,-293.093641,0.00047753,14]
[377194829,1754283046726,-151.0,0.00047753,14]
[377194830,1754283046735,-151.0,0.00047755,14]
[377194831,1754283046745,-151.0,0.00047755,14]
[377194832,1754283046754,-286.998784,0.00047755,14]
[377194833,1754283046764,-418.26816,0.00047755,14]
[377194834,1754283046773,-418.26816,0.00047755,14]
[377194835,1754283046782,-418.26816,0.00047755,14]
[377194836,1754283046791,-418.26816,0.00047755,14]
[377194837,1754283046800,-295.672472,0.00047755,14]
[377194838,1754283046810,-295.672476,0.00047755,14]
[377194839,1754283046819,-252.856498,0.00047755,14]
[377194840,1754283046828,-1553.465892,0.00047755,14]
[377194841,1754283046837,-1553.465892,0.00047755,14]
[377194842,1754283046847,-151.0,0.00047755,14]
[377194843,1754283046856,-151.0,0.00047755,14]
[377194844,1754283046865,-1553.465892,0.00047755,14]
[377194845,1754283046875,-1553.465892,0.00047755,14]
[377194846,1754283046884,-879.395519,0.00047755,14]
[377194847,1754283046893,-879.395519,0.00047755,14]
[377194848,1754283046903,-293.075366,0.00047755,14]
[377194849,1754283046912,-759.368077,0.00047755,14]
[377194850,1754283046921,-759.368077,0.00047755,14]
[377194851,1754283046930,-759.368077,0.00047755,14]
[377194852,1754283046939,-759.368077,0.00047755,14]
[377194853,1754283046949,-151.0,0.00047755,14]
[377194854,1754283046958,-151.0,0.00047755,14]
[377194855,1754283046967,-300.970445,0.00047755,14]
[377194856,1754283046977,-300.970445,0.00047755,14]
[377194857,1754283046986,-300.970445,0.00047755,14]
[377194858,1754283046995,-300.970443,0.00047755,14]
[377194859,1754283047005,-151.0,0.00047755,14]
[377194860,1754283047015,-153.28686188,0.00047762,14]
[377194861,1754283047025,-150.0,0.00047763,7]
[377194862,1754283047034,-151.0,0.00047765,14]
[377194863,1754283047044,-151.0,0.00047765,14]
[377194864,1754283047053,-250.202288,0.00047765,14]
[377194865,1754283047063,-151.0,0.00047765,14]
[377194866,1754283047072,-151.0,0.00047765,14]
[377194867,1754283047082,-168.358873,0.00047765,14]
[377194868,1754283047092,-168.358873,0.00047765,14]
[377194869,1754283047101,-151.0,0.00047765,14]
[377194870,1754283047113,-151.0,0.00047765,14]
[377194871,1754283047122,-235.489405,0.00047765,14]
[377194872,1754283047131,-151.0,0.00047765,14]
[377194873,1754283047141,-151.0,0.00047765,14]
[377194874,1754283047150,-177.685595,0.00047765,14]
[377194875,1754283047159,-177.685595,0.00047765,14]
[377194876,1754283047169,-151.0,0.00047765,14]
[377194877,1754283047178,-151.0,0.00047765,14]
[377194878,1754283047187,-418.26816,0.00047765,14]
[377194879,1754283047197,-418.26816,0.00047765,14]
[377194880,1754283047206,-151.0,0.00047765,14]
[377194881,1754283047216,-151.0,0.00047765,14]
[377194882,1754283047226,-1553.465892,0.00047765,14]
[377194883,1754283047235,-175.145811,0.00047765,14]
[377194884,1754283047244,-1553.465892,0.00047765,14]
[377194885,1754283047254,-759.368077,0.00047765,14]
[377194886,1754283047263,-759.368073,0.00047765,14]
[377194887,1754283047272,-151.0,0.00047765,14]
[377194888,1754283047282,-151.0,0.00047766,14]
[377194889,1754283047292,-151.0,0.00047766,14]
[377194890,1754283047301,-151.0,0.00047766,14]
[377194891,1754283047311,-151.0,0.00047766,14]
[377194892,1754283047320,-168.358873,0.00047766,14]
[377194893,1754283047330,-168.358873,0.00047766,14]
[377194894,1754283047339,-151.0,0.00047766,14]
[377194895,1754283047349,-151.0,0.00047766,14]
[377194896,1754283047358,-235.489405,0.00047766,14]
[377194897,1754283047368,-299.798976,0.00047766,14]
[377194898,1754283047378,-151.0,0.00047766,14]
[377194899,1754283047387,-177.685595,0.00047766,14]
[377194900,1754283047397,-177.685595,0.00047766,14]
[377194901,1754283047406,-151.0,0.00047766,14]
[377194902,1754283047416,-151.0,0.00047766,14]
[377194903,1754283047425,-151.0,0.00047766,14]
[377194904,1754283047434,-155.47109,0.00047768,14]
[377194905,1754283047443,-151.0,0.00047768,14]
[377194906,1754283047453,-151.0,0.00047768,14]
[377194907,1754283047462,-151.0,0.00047768,14]
[377194908,1754283047471,-168.358873,0.00047768,14]
[377194909,1754283047481,-168.358873,0.00047768,14]
[377194910,1754283047490,-277.257874,0.00047768,14]
[377194911,1754283047500,-151.0,0.00047768,14]
[377194912,1754283047509,-235.489405,0.00047768,14]
[377194913,1754283047518,-151.0,0.00047768,14]
[377194914,1754283047529,-177.685595,0.00047768,14]
[377194915,1754283047538,-177.685595,0.00047768,14]
[377194916,1754283047548,-267.396373,0.00047768,14]
[377194917,1754283047557,-418.26816,0.00047768,14]
[377194918,1754283047566,-418.268157,0.00047768,14]
[377194919,1754283047576,-151.0,0.00047768,14]
[377194920,1754283047585,-151.0,0.00047768,14]
[377194921,1754283047595,-151.0,0.00047768,14]
[377194922,1754283047605,-151.0,0.00047768,14]
[377194923,1754283047614,-1553.465892,0.00047768,14]
[377194924,1754283047623,-1553.465883,0.00047768,14]
[377194925,1754283047632,-271.980692,0.00047768,14]
[377194926,1754283047642,-271.980695,0.00047768,14]
[377194927,1754283047651,-5702.9064,0.00047768,2]
[377194928,1754283047661,-27516.77124094,0.00047768,30]
[377194929,1754283047670,-500.0,0.0004777,30]
[377194930,1754283047680,-151.0,0.00047776,14]
[377194931,1754283047689,-153.233418,0.00047776,14]
[377194932,1754283047699,-151.0,0.00047776,14]
[377194933,1754283047708,-151.0,0.00047776,14]
[377194934,1754283047718,-152.426126,0.00047776,14]
[377194935,1754283047727,-151.0,0.00047776,14]
[377194936,1754283047738,-151.0,0.00047776,14]
[377194937,1754283047747,-151.0,0.00047776,14]
[377194938,1754283047757,-151.0,0.00047776,14]
[377194939,1754283047766,-151.0,0.00047776,14]
[377194940,1754283047776,-151.0,0.00047776,14]
[377194941,1754283047787,-151.0,0.00047776,14]
[377194942,1754283047797,-151.0,0.00047776,14]
[377194943,1754283047806,-151.0,0.00047776,14]
[377194944,1754283047816,-246.163773,0.00047776,14]
[377194945,1754283047825,-151.0,0.00047776,14]
[377194946,1754283047834,-154.89547,0.00047776,14]
[377194947,1754283047843,-168.358873,0.00047776,14]
[377194948,1754283047852,-168.358873,0.00047776,14]
[377194949,1754283047861,-151.0,0.00047776,14]
[377194950,1754283047871,-235.489405,0.00047776,14]
[377194951,1754283047880,-153.689652,0.00047776,14]
[377194952,1754283047890,-5000.0,0.00047777,120]
[377194953,1754283047899,-247.687436,0.00047778,14]
[377194954,1754283047909,-151.0,0.00047778,14]
[377194955,1754283047918,-151.0,0.00047778,14]
[377194956,1754283047928,-151.0,0.00047778,14]
[377194957,1754283047937,-151.0,0.00047778,14]
[377194958,1754283047946,-237.15554,0.00047778,14]
[377194959,1754283047956,-237.15554,0.00047778,14]
[377194960,1754283047966,-151.673348,0.00047778,14]
[377194961,1754283047977,-151.0,0.00047778,14]
[377194962,1754283047987,-161.733733,0.00047778,14]
[377194963,1754283047997,-151.0,0.00047778,14]
[377194964,1754283048005,-153.024142,0.00047778,14]
[377194965,1754283048015,-151.0,0.00047778,14]
[377194966,1754283048024,-151.0,0.00047778,14]
[377194967,1754283048035,-151.0,0.00047778,14]
[377194968,1754283048044,-151.0,0.00047778,14]
[377194969,1754283048053,-263.291907,0.00047778,14]
[377194970,1754283048062,-162.718965,0.00047778,14]
[377194971,1754283048072,-151.0,0.00047778,14]
[377194972,1754283048081,-159.414674,0.00047778,14]
[377194973,1754283048091,-168.358873,0.00047778,14]
[377194974,1754283048100,-168.358873,0.00047778,14]
[377194975,1754283048113,-235.489405,0.00047778,14]
[377194976,1754283048123,-151.0,0.00047778,14]
[377194977,1754283048132,-235.489405,0.00047778,14]
[377194978,1754283048141,-1100.823876,0.00047778,14]
[377194979,1754283048152,-1100.823876,0.00047778,14]
[377194980,1754283048161,-151.0,0.00047778,14]
[377194981,1754283048170,-177.685595,0.00047778,14]
[377194982,1754283048181,-177.685595,0.00047778,14]
[377194983,1754283048191,-177.685595,0.00047778,14]
[377194984,1754283048200,-177.685595,0.00047778,14]
[377194985,1754283048209,-151.0,0.00047778,14]
[377194986,1754283048218,-151.0,0.00047778,14]
[377194987,1754283048227,-262.651591,0.00047778,14]
[377194988,1754283048237,-335.69539561,0.00047788,30]
[377194989,1754283048246,-247.687436,0.00047788,14]
[377194990,1754283048255,-245.0,0.00047788,14]
[377194991,1754283048265,-151.0,0.00047788,14]
[377194992,1754283048275,-151.0,0.00047788,14]
[377194993,1754283048286,-151.0,0.00047788,14]
[377194994,1754283048295,-151.0,0.00047788,14]
[377194995,1754283048305,-151.0,0.00047788,14]
[377194996,1754283048314,-151.0,0.00047788,14]
[377194997,1754283048324,-151.0,0.00047788,14]
[377194998,1754283048335,-151.0,0.00047788,14]
[377194999,1754283048345,-237.15554,0.00047788,14]
[377195000,1754283048354,-237.15554,0.00047788,14]
[377195001,1754283048363,-237.15554,0.00047788,14]
[377195002,1754283048374,-237.15554,0.00047788,14]
[377195003,1754283048384,-151.0,0.00047788,14]
[377195004,1754283048394,-151.0,0.00047788,14]
[377195005,1754283048403,-168.358873,0.00047788,14]
[377195006,1754283048413,-168.358873,0.00047788,14]
[377195007,1754283048422,-168.358873,0.00047788,14]
[377195008,1754283048513,-168.358873,0.00047788,14]
[377195009,1754283048522,-235.489405,0.00047788,14]
[377195010,1754283048532,-235.489405,0.00047788,14]
[377195011,1754283048541,-151.0,0.00047788,14]
[377195012,1754283048551,-151.0,0.00047788,14]
[377195013,1754283048560,-235.489405,0.00047788,14]
[377195014,1754283048569,-235.489405,0.00047788,14]
[377195015,1754283048579,-1100.823876,0.00047788,14]
[377195016,1754283048588,-1100.823876,0.00047788,14]
[377195017,1754283048597,-1100.823876,0.00047788,14]
[377195018,1754283048607,-1100.823876,0.00047788,14]
[377195019,1754283048616,-151.0,0.00047788,14]
[377195020,1754283048625,-151.0,0.00047788,14]
[377195021,1754283048635,-177.685595,0.00047788,14]
[377195022,1754283048644,-177.685595,0.00047788,14]
[377195023,1754283048655,-151.0,0.00047788,14]
[377195024,1754283048672,-150.0,0.00047797,7]
[377195025,1754283048682,-963.22546012,0.000478,30]
[377195026,1754283048690,-2530.71208924,0.000478,120]
[377195027,1754283048699,-500.0,0.000478,17]
[377195028,1754283048709,-178.68155694,0.00047834,7]
[377195029,1754283048718,-1000.0,0.00047836,14]
[377195030,1754283048727,-150.0,0.00047837,14]
[377195031,1754283048737,-150.0,0.00047845,7]
[377195032,1754283048746,-168.358873,0.00047862,14]
[377195033,1754283048755,-168.358873,0.00047862,14]
[377195034,1754283048764,-277.707316,0.00047862,14]
[377195035,1754283048774,-235.489405,0.00047862,14]
[377195036,1754283048783,-151.0,0.00047862,14]
[377195037,1754283048792,-235.489402,0.00047862,14]
[377195038,1754283048802,-177.685595,0.00047862,14]
[377195039,1754283048811,-177.685604,0.00047862,14]
[377195040,1754283048820,-151.0,0.00047869,14]
[377195041,1754283048829,-461.975391,0.00047869,14]
[377195042,1754283048838,-461.975391,0.00047869,14]
[377195043,1754283048847,-231.016692,0.00047869,14]
[377195044,1754283048856,-161.047084,0.00047869,14]
[377195045,1754283048865,-231.016692,0.00047869,14]
[377195046,1754283048875,-161.047084,0.00047869,14]
[377195047,1754283048884,-156.051261,0.00047869,14]
[377195048,1754283048893,-151.0,0.00047869,14]
[377195049,1754283048902,-212.283583,0.00047869,14]
[377195050,1754283048911,-151.0,0.00047869,14]
[377195051,1754283048920,-212.283583,0.00047869,14]
[377195052,1754283048929,-151.0,0.00047869,14]
[377195053,1754283048939,-151.0,0.00047869,14]
[377195054,1754283048948,-151.0,0.00047869,14]
[377195055,1754283048957,-151.0,0.00047869,14]
[377195056,1754283048967,-151.0,0.00047869,14]
[377195057,1754283048976,-159.864983,0.00047869,14]
[377195058,1754283048986,-151.670486,0.00047869,14]
[377195059,1754283048995,-151.0,0.00047869,14]
[377195060,1754283049004,-151.0,0.00047869,14]
[377195061,1754283049013,-151.0,0.00047869,14]
[377195062,1754283049023,-241.127134,0.00047869,14]
[377195063,1754283049032,-151.0,0.00047869,14]
[377195064,1754283049042,-151.0,0.00047869,14]
[377195065,1754283049051,-237.15554,0.00047869,14]
[377195066,1754283049060,-237.15554,0.00047869,14]
[377195067,1754283049069,-176.433134,0.00047869,14]
[377195068,1754283049079,-151.0,0.00047869,14]
[377195069,1754283049088,-1100.823876,0.00047869,14]
[377195070,1754283049097,-1100.823876,0.00047869,14]
[377195071,1754283049110,-151.0,0.00047869,14]
[377195072,1754283049120,-501.0987251,0.00047873,10]
[377195073,1754283049129,-500.78520876,0.00047873,10]
[377195074,1754283049138,-501.25218818,0.00047873,10]
[377195075,1754283049148,-264.99465784,0.00047873,10]
[377195076,1754283049157,-607.50648958,0.00047873,10]
[377195077,1754283049167,-151.0,0.00047873,14]
[377195078,1754283049176,-237.15554,0.00047873,14]
[377195079,1754283049185,-237.15554,0.00047873,14]
[377195080,1754283049195,-151.0,0.00047873,14]
[377195081,1754283049204,-1100.823876,0.00047873,14]
[377195082,1754283049213,-1100.823876,0.00047873,14]
[377195083,1754283049222,-151.0,0.00047873,14]
[377195084,1754283049232,-151.0,0.00047879,14]
[377195085,1754283049241,-151.0,0.00047879,14]
[377195086,1754283049250,-151.0,0.00047879,14]
[377195087,1754283049262,-237.15554,0.00047879,14]
[377195088,1754283049271,-237.15554,0.00047879,14]
[377195089,1754283049282,-1100.823876,0.00047879,14]
[377195090,1754283049291,-1100.823876,0.00047879,14]
[377195091,1754283049301,-151.0,0.00047879,14]
[377195092,1754283049310,-319.426,0.0004788,4]
[377195093,1754283049320,-153.24287061,0.0004788,14]
[377195094,1754283049329,-150.0,0.00047884,14]
[377195095,1754283049339,-150.0,0.00047887,12]
[377195096,1754283049349,-905.21573796,0.00047889,120]
[377195097,1754283049358,-151.0,0.0004789,14]
[377195098,1754283049367,-151.0,0.0004789,14]
[377195099,1754283049377,-151.0,0.0004789,14]
[377195100,1754283049386,-151.0,0.0004789,14]
[377195101,1754283049396,-151.0,0.0004789,14]
[377195102,1754283049406,-151.0,0.0004789,14]
[377195103,1754283049415,-151.0,0.0004789,14]
[377195104,1754283049426,-151.0,0.0004789,14]
[377195105,1754283049436,-151.0,0.0004789,14]
[377195106,1754283049445,-151.0,0.0004789,14]
[377195107,1754283049458,-151.0,0.0004789,14]
[377195108,1754283049471,-151.0,0.0004789,14]
[377195109,1754283049482,-151.0,0.0004789,14]
[377195110,1754283049492,-154.73384471,0.0004789,14]
[377195111,1754283049502,-153.73788876,0.0004789,14]
[377195112,1754283049511,-1213.0,0.0004789,14]
[377195113,1754283049521,-1213.0,0.0004789,14]
[377195114,1754283049530,-1213.0,0.0004789,14]
[377195115,1754283049539,-1213.0,0.0004789,14]
[377195116,1754283049549,-1213.0,0.0004789,14]
[377195117,1754283049558,-1213.0,0.0004789,14]
[377195118,1754283049568,-1213.0,0.0004789,14]
[377195119,1754283049577,-1213.0,0.0004789,14]
[377195120,1754283049587,-1213.0,0.0004789,14]
[377195121,1754283049596,-1213.0,0.0004789,14]
[377195122,1754283049605,-1213.0,0.0004789,14]
[377195123,1754283049615,-1213.0,0.0004789,14]
[377195124,1754283049625,-1213.0,0.0004789,14]
[377195125,1754283049635,-1213.0,0.0004789,14]
[377195126,1754283049644,-1213.0,0.0004789,14]
[377195127,1754283049653,-1213.0,0.0004789,14]
[377195128,1754283049663,-151.0,0.0004789,14]
[377195129,1754283049672,-331.47460071,0.0004789,14]
[377195130,1754283049681,-151.0,0.0004789,14]
[377195131,1754283049691,-295.32244137,0.0004789,14]
[377195132,1754283049700,-155.0,0.0004789,14]
[377195133,1754283049709,-154.36244599,0.0004789,14]
[377195134,1754283049719,-151.0,0.0004789,14]
[377195135,1754283049728,-237.15554,0.0004789,14]
[377195136,1754283049737,-237.15554,0.0004789,14]
[377195137,1754283049747,-151.0,0.0004789,14]
[377195138,1754283049763,-1100.823876,0.0004789,14]
[377195139,1754283049772,-1100.823876,0.0004789,14]
[377195140,1754283049782,-151.0,0.0004789,14]
[377195141,1754283049791,-500.0,0.00047894,120]
[377195142,1754283049801,-999.0,0.00047899,120]
[377195143,1754283049810,-150.06,0.000479,120]
[377195144,1754283049821,-2610.81153051,0.000479,120]
[377195145,1754283049831,-151.937112,0.000479,14]
[377195146,1754283049843,-2201.3,0.000479,14]
[377195147,1754283049852,-461.975391,0.000479,14]
[377195148,1754283049862,-461.975391,0.000479,14]
[377195149,1754283049871,-231.016692,0.000479,14]
[377195150,1754283049881,-161.047084,0.000479,14]
[377195151,1754283049892,-231.016692,0.000479,14]
[377195152,1754283049901,-161.047084,0.000479,14]
[377195153,1754283049911,-151.0,0.000479,14]
[377195154,1754283049921,-212.283583,0.000479,14]
[377195155,1754283049930,-151.0,0.000479,14]
[377195156,1754283049940,-212.283583,0.000479,14]
[377195157,1754283049949,-247.687436,0.000479,14]
[377195158,1754283049958,-151.0,0.000479,14]
[377195159,1754283049967,-151.0,0.000479,14]
[377195160,1754283049977,-151.0,0.000479,14]
[377195161,1754283049986,-151.0,0.000479,14]
[377195162,1754283049995,-151.0,0.000479,14]
[377195163,1754283050004,-151.0,0.000479,14]
[377195164,1754283050013,-151.0,0.000479,14]
[377195165,1754283050022,-151.0,0.000479,14]
[377195166,1754283050031,-151.0,0.000479,14]
[377195167,1754283050040,-151.0,0.000479,14]
[377195168,1754283050050,-151.0,0.000479,14]
[377195169,1754283050059,-202.18270393,0.000479,120]
[377195170,1754283050068,-1100.823876,0.000479,14]
[377195171,1754283050077,-1100.823876,0.000479,14]
[377195172,1754283050086,-151.0,0.000479,14]
[377195173,1754283050096,-169.24963092,0.000479,15]
[377195174,1754283050108,-150.0,0.000479,7]
[377195175,1754283050117,-500.0,0.000479,17]
[377195176,1754283050126,-13054.47176489,0.000479,2]
[377195177,1754283050136,-172.61931634,0.000479,2]
[377195178,1754283050145,-196.22397361,0.000479,120]
[377195179,1754283050155,-167.47154797,0.000479,15]
[377195180,1754283050164,-157.38580759,0.000479,2]
[377195181,1754283050173,-150.0,0.00047936,14]
[377195182,1754283050185,-150.0,0.00047943,7]
[377195183,1754283050195,-500.0,0.00047945,120]
[377195184,1754283050205,-500.0,0.00047945,120]
[377195185,1754283050214,-500.0,0.00047945,120]
[377195186,1754283050226,-500.0,0.00047945,120]
[377195187,1754283050236,-500.0,0.00047945,120]
[377195188,1754283050245,-150.0,0.00047947,7]
[377195189,1754283050255,-151.0,0.00047952,14]
[377195190,1754283050265,-151.0,0.00047962,14]
[377195191,1754283050274,-151.0,0.00047962,14]
[377195192,1754283050284,-151.0,0.00047962,14]
[377195193,1754283050293,-239.010282,0.00047962,14]
[377195194,1754283050302,-239.010282,0.00047962,14]
[377195195,1754283050312,-152.388089,0.00047962,14]
[377195196,1754283050321,-151.0,0.00047962,14]
[377195197,1754283050330,-167.618422,0.00047962,14]
[377195198,1754283050340,-167.618422,0.00047962,14]
[377195199,1754283050349,-151.0,0.00047962,14]
[377195200,1754283050359,-151.0,0.00047962,14]
[377195201,1754283050368,-151.0,0.00047962,14]
[377195202,1754283050378,-219.98336,0.00047962,14]
[377195203,1754283050386,-151.0,0.00047962,14]
[377195204,1754283050396,-219.98336,0.00047962,14]
[377195205,1754283050406,-151.0,0.00047962,14]
[377195206,1754283050415,-157.134854,0.00047962,14]
[377195207,1754283050425,-151.0,0.00047962,14]
[377195208,1754283050434,-157.134854,0.00047962,14]
[377195209,1754283050443,-151.0,0.00047962,14]
[377195210,1754283050452,-151.0,0.00047962,14]
[377195211,1754283050462,-251.973677,0.00047962,14]
[377195212,1754283050471,-251.973677,0.00047962,14]
[377195213,1754283050480,-150.0,0.00047965,7]
[377195214,1754283050489,-150.0,0.00047971,7]
[377195215,1754283050498,-90412.0,0.00047973,120]
[377195216,1754283050508,-35786.0,0.00047973,120]
[377195217,1754283050517,-6563.0,0.00047973,120]
[377195218,1754283050526,-151.0,0.00047973,14]
[377195219,1754283050536,-151.0,0.00047973,14]
[377195220,1754283050545,-151.0,0.00047973,14]
[377195221,1754283050554,-1100.823876,0.00047973,14]
[377195222,1754283050563,-1100.823876,0.00047973,14]
[377195223,1754283050573,-151.0,0.00047973,14]
[377195224,1754283050582,-150.0,0.0004798,14]
[377195225,1754283050592,-150.0,0.00047982,14]
[377195226,1754283050602,-150.0,0.00047983,14]
[377195227,1754283050612,-499.999999,0.0004799,120]
[377195228,1754283050622,-1694.21445133,0.0004799,2]
[377195229,1754283050633,-150.0,0.00047993,14]
[377195230,1754283050644,-172.25933334,0.00048,120]
[377195231,1754283050653,-3529758.97452289,0.00048,120]
[377195232,1754283051916,-150.0,0.00025349,3]
[377195233,1754283051926,-300.0,0.00027589,3]
[377195234,1754283051935,-1491.839995,0.00043189,2]
[377195235,1754283051948,-489.0,0.00043189,2]
[377195236,1754283051964,-124.122005,0.00043189,2]
[377195237,1754283051973,-1044.877995,0.00045685,61]
[377195238,1754283052078,-525.16576527,0.00045685,61]
[377195241,1754283446775,319.426,0.00019,8]
[377195242,1754283459298,-500.0,0.00025749,2]
[377195243,1754283554760,154.45,0.00013699,2]
[377195244,1754283559820,-150.0,0.00026249,3]
[377195245,1754283559852,-100.0,0.00028489,3]
[377195246,1754283559868,-150.0,0.00028489,3]
[377195247,1754283559883,-50.0,0.00028489,3]
[377195248,1754283559893,-250.0,0.00028874,2]
[377195249,1754283642180,1290.0,0.000141,14]
[377195262,1754284232358,-154.45,0.0002911,2]
[377195263,1754284232368,-615.04660183,0.00032412,2]
[377195264,1754284232380,-153.71,0.0003465,2]
[377195265,1754284232390,-500.0,0.00035639,7]
[377195266,1754284232400,-5074.29291094,0.00036107,120]
[377195267,1754284232410,-500.0,0.0003782,7]
[377195268,1754284232420,-153.71,0.00038115,2]
[377195269,1754284232429,-291.18,0.000393,2]
[377195270,1754284232439,-200.0,0.0003941,2]
[377195271,1754284232449,-462.736,0.0003941,54]
[377195272,1754284232458,-1000.0,0.00039479,2]
[377195274,1754284232468,-166.17,0.00039479,2]
[377195276,1754284232478,-8433.70448723,0.00039479,2]
[377195294,1754284237861,-150.0,0.0002961,3]
[377195296,1754284237870,-300.0,0.0003185,3]
[377195298,1754284237880,-273.85722526,0.00039479,2]
[377195302,1754284237906,-2389.80249002,0.00039479,2]